Cogmind - Beta 13 @@@ ROGUE MODE // 2024.04.09 @ 23:49:51 Player: opdo Result: Destroyed by G-67 Veteran with Field Laser Performance ------------- Evolutions (6) 3000 Regions Visited (14) 2800 Robots Destroyed (67) 335 Value Destroyed (2954) 2954 Prototype IDs (29) 580 Alien Tech Used (0) 0 Bonus (55) 55 TOTAL SCORE: 9724 Bonus ------- High Alert Combat Kills 80 Follower Combat Kills 493 Entered DSFs 500 Aligned with FarCom 300 Friendly Fire -1318 Cogmind --------- Core Integrity 0/1150 Matter 146/300 Energy 99/100 System Corruption 0% Temperature Cool (21) Movement Core (50) Location -4/Factory Parts ------- > --- POWER (3) -------- (None) > --- PROPULSION (5) --- (None) > --- UTILITY (6) ------ (None) > --- WEAPON (5) ------- (None) > --- INVENTORY (5) ---- Improved Sensor Array Relay Coupler [Hunter] (10) AWS/Autocannon Peak State ------------ > --- POWER ------------ Fission Core Fission Core Micro Fission Core > --- PROPULSION ------- Armored Medium Treads Advanced Heavy Treads Flexi-carbon Leg Improved VSS Leg > --- UTILITY ---------- Large Storage Unit Advanced Signal Interpreter Layered Light Armor Plating Hacking Suite Hacking Suite Improved System Shield > --- WEAPON ----------- Backup Laser III Wave Gun KE Penetrator KE Penetrator Magnetic Acceleration Cannon > --- INVENTORY -------- Fusion Compressor Improved Sensor Array Kinecellerator Transmission Jammer Improved Light Armor Plating Relay Coupler [Hunter] Relay Coupler [Hunter] Stealth Drone Bay KE Penetrator Hypervelocity Coil Gun Railgun AWS/Autocannon [Rating: 104] Favorites ----------- Power Light Ion Engine Engine Light Ion Engine Power Core Nuclear Core Reactor Light Antimatter Reactor Propulsion Aerolev Unit Treads Advanced Heavy Treads Leg Flexi-carbon Leg Hover Unit Aerolev Unit Utility Targeting Computer Device Improved Sensor Array Storage Large Storage Unit Processor Targeting Computer Hackware Hacking Suite Protection Improved Light Armor Plating Weapon Assault Rifle Energy Gun Wave Gun Ballistic Gun Assault Rifle Ballistic Cannon Assault Cannon Build | -11 -10 -10 -10 -9 -8 -8 -7 -6 -6 -6 -6 -5 -5 -4 ------- Run | Yrd Mat Min Exi Min Mat Sto Fac Fac Ext Cet Arc Fac DSF Fac Slots Evolved 12 | . . . . . 4 . 2 2 . . . 2 . 2 Power 2 | . . . . . . . 1 . . . . . . 1 Propulsion 3 | . . . . . 1 . 1 . . . . . . 1 Utility 4 | . . . . . 1 . . 2 . . . 1 . . Weapon 3 | . . . . . 2 . . . . . . 1 . . Parts Attached 108 | 7 2 1 1 . 10 6 18 5 14 11 7 5 9 12 Power 19 | 2 . 1 . . 1 . 4 1 1 1 2 1 2 3 Engine 9 | 2 . . . . 1 . 4 1 . . 1 . . . Core 8 | . . 1 . . . . . . 1 . 1 1 2 2 Reactor 2 | . . . . . . . . . . 1 . . . 1 Propulsion 33 | 2 . . . . 3 1 4 . 9 4 4 1 . 5 Treads 2 | . . . . . . . . . . . 1 1 . . Leg 19 | 2 . . . . . . . . 6 4 3 . . 4 Wheel . | . . . . . . . . . . . . . . . Hover 12 | . . . . . 3 1 4 . 3 . . . . 1 Flight . | . . . . . . . . . . . . . . . Utility 20 | 1 2 . 1 . 1 . 2 3 2 3 1 2 1 1 Device 4 | . 1 . . . . . . 1 . 1 . . . 1 Storage 2 | 1 . . 1 . . . . . . . . . . . Processor 3 | . 1 . . . . . . 2 . . . . . . Hackware 4 | . . . . . . . . . 1 1 . 2 . . Protection 7 | . . . . . 1 . 2 . 1 1 1 . 1 . Artifact . | . . . . . . . . . . . . . . . Weapon 36 | 2 . . . . 5 5 8 1 2 3 . 1 6 3 Energy Gun 3 | . . . . . . 1 . . . 1 . 1 . . Energy Cannon . | . . . . . . . . . . . . . . . Ballistic Gun 22 | 2 . . . . 2 2 5 . 1 2 . . 5 3 Ballistic Cannon 11 | . . . . . 3 2 3 1 1 . . . 1 . Launcher . | . . . . . . . . . . . . . . . Special Weapon . | . . . . . . . . . . . . . . . Impact Weapon . | . . . . . . . . . . . . . . . Slashing Weapon . | . . . . . . . . . . . . . . . Piercing Weapon . | . . . . . . . . . . . . . . . Special Melee Weapon . | . . . . . . . . . . . . . . . Unidentified Prototypes 6 | . . . . . 1 2 1 . 1 . . . . 1 Parts Lost 44 | . 1 . . . . . . . 4 7 10 . . 22 Power 8 | . . . . . . . . . 1 1 1 . . 5 Propulsion 16 | . . . . . . . . . 1 4 4 . . 7 Utility 7 | . 1 . . . . . . . 1 2 1 . . 2 Weapon 13 | . . . . . . . . . 1 . 4 . . 8 Highest Loss Streak 22 | . 1 . . . . . . . 3 4 14 . . 22 To Critical Strikes . | . . . . . . . . . . . . . . . Average Slot Usage (%) 90 | . 95 100 100 100 84 98 99 100 87 89 77 61 85 80 Engine 7 | . 14 8 . . 7 9 14 13 7 5 6 . . . Core 4 | . . 5 14 14 1 . . . 4 2 1 10 11 11 Treads 1 | . . . . . . . . . . . 1 9 11 8 Leg 10 | . 28 28 28 28 2 . . . 9 24 18 . . 7 Hover 12 | . . . . . 23 27 30 26 15 . . . . . Device 1 | . 2 . . . . . . 6 . 3 . . . . Storage 7 | . 14 14 14 14 9 9 7 6 6 6 6 5 5 5 Processor 10 | . 6 14 14 14 9 9 7 13 13 13 13 11 6 4 Hackware 3 | . . . . . . . . . 3 2 6 17 17 15 Protection 4 | . . . . . 2 9 7 6 8 4 5 . 3 4 Energy Gun 1 | . . . . . . 6 . . . 2 3 4 11 6 Ballistic Gun 12 | . 28 28 28 28 18 12 15 7 1 14 8 . 10 11 Ballistic Cannon 8 | . . . . . 11 15 14 18 13 2 . . 3 3 Naked Turns 1 | . . . . . . . . . . . . . . 1 Heaviest Build 109 | 14 15 14 29 29 37 39 49 62 109 108 64 42 71 74 Greatest Support 97 | 20 20 20 20 20 24 24 33 33 75 75 75 97 97 97 Greatest Overweight (x) 20 | 4 . . 1 1 1 1 1 1 4 2 2 . . 20 Average Overweight (x) . | . . . . 1 1 1 . 1 1 . . . . . Largest Inventory Capacity 15 | 8 8 8 15 15 15 15 15 15 15 15 15 15 15 15 Average Capacity 13 | 7 8 8 9 15 15 15 15 15 15 15 15 15 15 14 Most Carried 15 | 6 8 8 8 8 12 15 15 15 15 15 15 11 15 15 Average Carried 12 | 3 6 7 7 8 10 13 14 13 14 14 10 8 11 13 Final Capacity 15 | 8 8 8 15 15 15 15 15 15 15 15 15 15 15 5 Final Carried 15 | 6 8 8 8 8 12 15 15 15 15 15 9 11 15 5 Class Distribution -------------------- 43% | Skirmisher 20% | Mutant 8% | Hacker-Skirmisher 8% | Scavenger-Skirmisher 7% | Scavenger-Tank 6% | Hacker-Mutant Dominant Class ---------------- Mutant | -10/Materials Mutant | -10/Mines Mutant | -10/Exiles Mutant | -9/Mines Skirmisher | -8/Materials Skirmisher | -8/Storage Skirmisher | -7/Factory Skirmisher | -6/Factory Skirmisher | -6/Extension Scavenger-Skirmisher | -6/Cetus Scavenger-Mutant | -6/Archives Hacker-Mutant | -5/Factory Hacker-Skirmisher | -5/DSF Hacker-Skirmisher | -4/Factory Resources | -11 -10 -10 -10 -9 -8 -8 -7 -6 -6 -6 -6 -5 -5 -4 ----------- Run | Yrd Mat Min Exi Min Mat Sto Fac Fac Ext Cet Arc Fac DSF Fac Matter Collected 2328 | 330 70 19 . 81 54 92 76 62 596 314 81 . 75 478 Remotely . | . . . . . . . . . . . . . . . Salvage Created 2683 | 137 251 . . . . 92 82 55 709 541 81 . 150 585 Parts 150 | 11 16 . . . . 12 8 6 39 17 1 . 9 31 Haulers Intercepted 1 | . . . . . . . . . 1 . . . . . Recyclers Shooed . | . . . . . . . . . . . . . . . Parts Field Recycled . | . . . . . . . . . . . . . . . Retrieved Matter . | . . . . . . . . . . . . . . . Parts Self-Destructed . | . . . . . . . . . . . . . . . Prevented . | . . . . . . . . . . . . . . . Kills | -11 -10 -10 -10 -9 -8 -8 -7 -6 -6 -6 -6 -5 -5 -4 ------- Run | Yrd Mat Min Exi Min Mat Sto Fac Fac Ext Cet Arc Fac DSF Fac Combat Hostiles Destroyed 47 | . 6 . . . . 3 2 1 14 11 1 . 2 7 Guns 23 | . 6 . . . . 3 . . . 6 . . 1 7 Cannons 23 | . . . . . . . 2 1 14 5 . . 1 . Classes Destroyed 13 | 2 2 . . . . 1 3 1 3 . . . 1 . Worker 1 | . . . . . . . . . 1 . . . . . Builder 2 | . . . . . . . . . 2 . . . . . Tunneler 5 | 4 . . . . . . . 1 . . . . . . Hauler 2 | . . . . . . . . . 1 . . . . 1 Recycler 1 | 1 . . . . . . . . . . . . . . Operator 3 | . . . . . . . 1 . . . . . . 2 Watcher 4 | . 1 . . . . 1 . . 1 1 . . . . Swarmer 7 | . . . . . . 3 . . 4 . . . . . Grunt 25 | . 6 . . . . . . . 9 5 . . . 5 Sentry 3 | . . . . . . . . 1 1 . 1 . . . Specialist 2 | . . . . . . . . . . . . . 2 . Hunter 5 | . . . . . . . 1 . . 2 . . . 2 Programmer 1 | . . . . . . . 1 . . . . . . . Cetus Guard 4 | . . . . . . . . . . 4 . . . . Guerrilla 1 | . . . . . . . . . 1 . . . . . Best Kill Streak 10 | 2 4 . . . . 3 1 1 10 5 1 . 1 4 Combat Bots Only 8 | . 3 . . . . 3 1 1 8 4 1 . 1 3 Max Kills in Single Turn 2 | 1 1 . . . . 2 1 1 2 1 1 . 1 2 Gunslinging 1 | . . . . . . . . . . . . . . 1 Exploded . | . . . . . . . . . . . . . . . Melee . | . . . . . . . . . . . . . . . Uniques/NPCs Destroyed 1 | . . . . . . . . . 1 . . . . . A7 (-6/Extension) Combat | -11 -10 -10 -10 -9 -8 -8 -7 -6 -6 -6 -6 -5 -5 -4 -------- Run | Yrd Mat Min Exi Min Mat Sto Fac Fac Ext Cet Arc Fac DSF Fac Hostile Shots Fired 686 | . 28 . . 8 . 8 8 9 96 145 56 . 42 286 Missed 167 | . 7 . . 1 . 4 2 2 24 36 16 . 10 65 Damage Taken 9527 | . 243 . . 105 22 35 86 51 1125 2073 930 . 561 4296 Core 1651 | . 32 . . . . . 43 6 131 246 39 . . 1154 Absorbed by Shields 108 | . . . . . . . . . 108 . . . . . Redirected to Shielding 57 | . . . . . . . . . 16 41 . . . . Core Remaining (%) 88 | 100 . . . 87 . 100 93 . . . 50 . 100 . Volleys Fired 140 | 11 22 . . . . 4 6 5 27 19 9 . 7 30 Largest 5 | 2 2 . . . . 4 4 2 3 4 4 . 5 5 Hottest 244 | 40 40 . . . . 153 145 81 129 162 162 . 244 240 Shots Fired 421 | 22 44 . . . . 16 24 9 80 92 15 . 35 84 Gun 278 | 22 44 . . . . 8 12 4 7 59 15 . 28 79 Cannon 143 | . . . . . . 8 12 5 73 33 . . 7 5 Launcher . | . . . . . . . . . . . . . . . Special . | . . . . . . . . . . . . . . . Kinetic 384 | 22 44 . . . . 12 24 9 80 86 11 . 21 75 Thermal 33 | . . . . . . . . . . 6 4 . 14 9 Explosive . | . . . . . . . . . . . . . . . Electromagnetic 4 | . . . . . . 4 . . . . . . . . Robot Hit Streak 13 | 4 9 . . . . 3 7 6 13 10 9 . 6 9 Robot Miss Streak 9 | 2 2 . . . . 2 5 4 9 3 1 . 4 5 Penetration Max 1 | . . . . . . . . . . 1 . . . 1 Secondary Targets 4 | . . . . . . . . . . 3 . . . 1 Max Gunslinging Chain 1 | . . . . . . . . . . 1 . . . 1 Autonomous 78 | . . . . . . . . . 44 34 . . . . Shots Hit Robots 262 | 11 34 . . . . 3 13 7 57 60 11 . 18 48 Core Hits 136 | 6 13 . . . . 4 6 4 29 32 5 . 6 31 Critical Kills 4 | . . . . . . . . . . 2 . . . 2 Critical Parts Destroyed 8 | . 1 . . . . . . . . 1 1 . 3 2 Critical Strikes 21 | . 1 . . . . . . . 3 4 1 . 6 6 Burn 3 | . . . . . . . . . . . . . 2 1 Destroy 13 | . 1 . . . . . . . . 3 1 . 4 4 Blast 5 | . . . . . . . . . 3 1 . . . 1 Melee Attacks . | . . . . . . . . . . . . . . . Impact . | . . . . . . . . . . . . . . . Slashing . | . . . . . . . . . . . . . . . Piercing . | . . . . . . . . . . . . . . . Sneak Attacks . | . . . . . . . . . . . . . . . Combat Hostiles . | . . . . . . . . . . . . . . . Follow-up Attacks . | . . . . . . . . . . . . . . . Damage Inflicted 9219 | 141 422 . . . . 131 199 146 3243 2788 260 . 325 1564 Guns 3252 | 141 422 . . . . 85 69 61 47 690 260 . 207 1270 Cannons 5760 | . . . . . . 46 130 85 3194 2098 . . 118 89 Explosions 205 | . . . . . . . . . . . . . . 205 Melee . | . . . . . . . . . . . . . . . Ramming 2 | . . . . . . . . . 2 . . . . . Kinetic 8517 | 141 422 . . . . 54 199 146 3241 2711 206 . 176 1221 Thermal 623 | . . . . . . . . . . 77 54 . 149 343 Explosive . | . . . . . . . . . . . . . . . Electromagnetic 77 | . . . . . . 77 . . . . . . . . Impact . | . . . . . . . . . . . . . . . Slashing . | . . . . . . . . . . . . . . . Piercing . | . . . . . . . . . . . . . . . Highest Corruption 3 | . . . . . . 3 . . . . . . 3 . Average Corruption 1 | . . . . . . 2 . . . . . . 1 . Corruption Purged . | . . . . . . . . . . . . . . . Corruption Blocked . | . . . . . . . . . . . . . . . Overload Shots . | . . . . . . . . . . . . . . . Overflow Damage 257 | . . . . . . . . . 137 120 . . . . Projectiles 257 | . . . . . . . . . 137 120 . . . . Explosions . | . . . . . . . . . . . . . . . Melee . | . . . . . . . . . . . . . . . Knockbacks 15 | . . . . . . . . . 10 1 . . 1 3 Impact . | . . . . . . . . . . . . . . . Kinetic 14 | . . . . . . . . . 10 1 . . 1 2 Secondary 1 | . . . . . . . . . . . . . . 1 Self-Inflicted Damage 1 | . . . . . . . . . 1 . . . . . Shots . | . . . . . . . . . . . . . . . Rammed 1 | . . . . . . . . . 1 . . . . . Targets Rammed 1 | . . . . . . . . . 1 . . . . . Kicked . | . . . . . . . . . . . . . . . Crushed . | . . . . . . . . . . . . . . . Highest Temperature 591 | . 2 . . . . 180 325 44 283 470 256 . 430 591 Average Temperature 166 | . 2 . . . . 72 126 18 61 206 149 . 188 246 Received Heat Transfer 1669 | . 135 . . . 9 . . 12 266 195 171 . . 881 Effects 32 | . . . . . . . 1 . . 3 . . 2 26 Shutdowns 10 | . . . . . . . . . . 3 . . 1 6 Energy Bleed 2 | . . . . . . . 1 . . . . . . 1 Interference 9 | . . . . . . . . . . . . . . 9 Matter Decay 3 | . . . . . . . . . . . . . 1 2 Damage (minor) 3 | . . . . . . . . . . . . . . 3 Damage (major) 3 | . . . . . . . . . . . . . . 3 Damage (core) 2 | . . . . . . . . . . . . . . 2 Siege Activations . | . . . . . . . . . . . . . . . Robots Corrupted . | . . . . . . . . . . . . . . . Combat Hostiles . | . . . . . . . . . . . . . . . Parts Fried . | . . . . . . . . . . . . . . . Impact Corruptions . | . . . . . . . . . . . . . . . Robots Melted 1 | . . . . . . . . . . . 1 . . . Combat Hostiles 1 | . . . . . . . . . . . 1 . . . Parts Melted 5 | . . . . . . . . . . 1 3 . . 1 Heat Transferred 1199 | . . . . . . . . . . 148 111 . 407 533 Parts Sabotaged . | . . . . . . . . . . . . . . . Parts Stolen . | . . . . . . . . . . . . . . . Parts Stripped . | . . . . . . . . . . . . . . . Power Chain Reactions . | . . . . . . . . . . . . . . . Alert | -11 -10 -10 -10 -9 -8 -8 -7 -6 -6 -6 -6 -5 -5 -4 ------- Run | Yrd Mat Min Exi Min Mat Sto Fac Fac Ext Cet Arc Fac DSF Fac Peak Influence 480 | 25 164 63 . . 28 81 89 60 480 419 171 113 159 344 Initial 228 | . 16 63 . . . 11 3 . . 228 151 45 79 83 Average 111 | 8 78 63 . . 9 13 33 36 200 336 151 57 108 157 Maximum Alert Level 2 | . . . . . . . . . 2 2 . . . 1 Low Security (%) 78 | 100 100 100 . 100 100 100 100 100 51 . 100 100 100 83 Level 1 15 | . . . . . . . . . 31 83 . . . 16 Level 2 5 | . . . . . . . . . 17 16 . . . . Level 3 . | . . . . . . . . . . . . . . . Level 4 . | . . . . . . . . . . . . . . . Level 5 . | . . . . . . . . . . . . . . . High Security . | . . . . . . . . . . . . . . . Max Security . | . . . . . . . . . . . . . . . Squads Dispatched 14 | . 2 . . . . . 1 . 4 1 . 1 1 4 Investigation 5 | . . . . . . . . . 2 1 . 1 . 1 Extermination 1 | . . . . . . . 1 . . . . . . . Reinforcement 8 | . 2 . . . . . . . 2 . . . 1 3 Assault . | . . . . . . . . . . . . . . . Garrison . | . . . . . . . . . . . . . . . Intercept . | . . . . . . . . . . . . . . . Searches Triggered . | . . . . . . . . . . . . . . . Construction Impeded 2 | . . . . . . . . . 1 . . . . 1 Haulers Reinforced . | . . . . . . . . . . . . . . . Active Scanning Responses . | . . . . . . . . . . . . . . . Cargo Convoy Interrupts . | . . . . . . . . . . . . . . . Stealth | -11 -10 -10 -10 -9 -8 -8 -7 -6 -6 -6 -6 -5 -5 -4 --------- Run | Yrd Mat Min Exi Min Mat Sto Fac Fac Ext Cet Arc Fac DSF Fac Distress Signals 13 | . . . . . 1 1 . . 4 2 1 . . 4 Communications Jammed . | . . . . . . . . . . . . . . . Distress Signals . | . . . . . . . . . . . . . . . Times Spotted 109 | . 8 2 . 6 3 3 6 1 28 22 9 . 4 17 Peak Tracking Total 9 | . 5 . . 9 3 3 5 1 5 9 3 . 2 6 Tactical Retreats 3 | . . . . . . . . . 1 . . . 2 . Traps | -11 -10 -10 -10 -9 -8 -8 -7 -6 -6 -6 -6 -5 -5 -4 ------- Run | Yrd Mat Min Exi Min Mat Sto Fac Fac Ext Cet Arc Fac DSF Fac Traps Triggered 15 | . . . . . . 4 4 . 5 . . . 2 . Indirectly . | . . . . . . . . . . . . . . . Trap Hack Attempts . | . . . . . . . . . . . . . . . Triggered . | . . . . . . . . . . . . . . . Disarmed . | . . . . . . . . . . . . . . . Reprogrammed . | . . . . . . . . . . . . . . . Reused . | . . . . . . . . . . . . . . . Traps Extracted . | . . . . . . . . . . . . . . . Installed . | . . . . . . . . . . . . . . . Triggered . | . . . . . . . . . . . . . . . Machines | -11 -10 -10 -10 -9 -8 -8 -7 -6 -6 -6 -6 -5 -5 -4 ---------- Run | Yrd Mat Min Exi Min Mat Sto Fac Fac Ext Cet Arc Fac DSF Fac Machines Disabled 12 | . . . . . . 1 . . 1 2 1 . . 7 Max in Single Turn 5 | . . . . . . 1 . . . 1 1 . . 5 Machines Repaired . | . . . . . . . . . . . . . . . Machines Dismantled . | . . . . . . . . . . . . . . . Machines Sabotaged . | . . . . . . . . . . . . . . . Overloaded Fab Kills . | . . . . . . . . . . . . . . . Hacking | -11 -10 -10 -10 -9 -8 -8 -7 -6 -6 -6 -6 -5 -5 -4 --------- Run | Yrd Mat Min Exi Min Mat Sto Fac Fac Ext Cet Arc Fac DSF Fac Machines Accessed 31 | . . . 1 . 4 5 7 2 4 2 . 3 . 3 Terminals 23 | . . . . . 3 5 5 1 4 2 . 1 . 2 Fabricators 3 | . . . . . . . 1 1 . . . . . 1 Repair Stations 1 | . . . . . . . . . . . . 1 . . Recycling Units . | . . . . . . . . . . . . . . . Scanalyzers . | . . . . . . . . . . . . . . . Garrison Access 3 | . . . . . 1 . 1 . . . . 1 . . Total Hacks 68 | . . . 1 . 13 11 11 5 10 5 . 8 . 4 Successful 31 | . . . 1 . 9 3 3 3 2 2 . 6 . 2 Failed 37 | . . . . . 4 8 8 2 8 3 . 2 . 2 Catastrophic 10 | . . . . . 3 2 3 . 1 . . 1 . . Database Lockouts . | . . . . . . . . . . . . . . . Manual 33 | . . . 1 . 9 8 6 2 . 1 . 4 . 2 Terminals 52 | . . . . . 11 11 7 4 10 5 . 1 . 3 Fabricators 4 | . . . . . . . 2 1 . . . . . 1 Repair Stations 2 | . . . . . . . . . . . . 2 . . Recycling Units . | . . . . . . . . . . . . . . . Scanalyzers . | . . . . . . . . . . . . . . . Garrison Access 9 | . . . . . 2 . 2 . . . . 5 . . Terminal Hacks 14 | . . . 1 . 3 1 2 1 2 2 . 1 . 1 Record 2 | . . . . . . . . . . 2 . . . . Robot Analysis 1 | . . . . . 1 . . . . . . . . . Open Door 2 | . . . . . . . . . 2 . . . . . Open DSF 1 | . . . . . . . . . . . . 1 . . Alert Level 1 | . . . . . . . 1 . . . . . . . Unreport Threat 1 | . . . . . . 1 . . . . . . . . Locate Traps 2 | . . . . . 1 . . 1 . . . . . . Zone Layout 3 | . . . . . 1 . 1 . . . . . . 1 Derelict Proto ID Bank 1 | . . . 1 . . . . . . . . . . . Fabricator Hacks 3 | . . . . . . . 1 1 . . . . . 1 Build 3 | . . . . . . . 1 1 . . . . . 1 Repair Station Hacks 1 | . . . . . . . . . . . . 1 . . Refit 1 | . . . . . . . . . . . . 1 . . Recycling Unit Hacks . | . . . . . . . . . . . . . . . Scanalyzer . | . . . . . . . . . . . . . . . Garrison Access Hacks 2 | . . . . . 1 . . . . . . 1 . . Unlock Access 1 | . . . . . 1 . . . . . . . . . Coupler Status 1 | . . . . . . . . . . . . 1 . . Unauthorized Hacks 11 | . . . . . 5 2 . 1 . . . 3 . . Terminals 7 | . . . . . 4 2 . 1 . . . . . . Botnet 5 | . . . . . 3 1 . 1 . . . . . . Operators 2 | . . . . . 1 1 . . . . . . . . Fabricators . | . . . . . . . . . . . . . . . Repair Stations . | . . . . . . . . . . . . . . . Recycling Units . | . . . . . . . . . . . . . . . Scanalyzers . | . . . . . . . . . . . . . . . Garrison Access 4 | . . . . . 1 . . . . . . 3 . . Broadcast 1 | . . . . . . . . . . . . 1 . . Reprogram 2 | . . . . . 1 . . . . . . 1 . . Eject 1 | . . . . . . . . . . . . 1 . . Data Cores Recovered 2 | . . . . . 1 . 1 . . . . . . . Used 1 | . . . . . . . 1 . . . . . . . Hacking Detections 24 | . . . . . 3 4 7 2 2 2 . 2 . 2 Full Trace Events 4 | . . . . . . 1 . . 2 1 . . . . Feedback Events 1 | . . . . . . . . . 1 . . . . . Hackware Fried 1 | . . . . . . . . . 1 . . . . . Feedback Blocked . | . . . . . . . . . . . . . . . Robot Schematics Acquired . | . . . . . . . . . . . . . . . Robots Built 2 | . . . . . . . 1 . . . . . . 1 Authchips . | . . . . . . . . . . . . . . . Time 121 | . . . . . . . 81 . . . . . . 40 Total Robot Build Rating 2 | . . . . . . . 1 . . . . . . 1 Part Schematics Acquired . | . . . . . . . . . . . . . . . Parts Built 1 | . . . . . . . . 1 . . . . . . Authchips . | . . . . . . . . . . . . . . . Time 64 | . . . . . . . . 64 . . . . . . Total Part Build Rating 8 | . . . . . . . . 8 . . . . . . Parts Repaired . | . . . . . . . . . . . . . . . Time . | . . . . . . . . . . . . . . . Parts Recycled . | . . . . . . . . . . . . . . . Recycled Matter . | . . . . . . . . . . . . . . . Retrieved Matter . | . . . . . . . . . . . . . . . Retrieved Components . | . . . . . . . . . . . . . . . Parts Scanalyzed . | . . . . . . . . . . . . . . . Part Schematics Acquired . | . . . . . . . . . . . . . . . Parts Damaged . | . . . . . . . . . . . . . . . Bothacking | -11 -10 -10 -10 -9 -8 -8 -7 -6 -6 -6 -6 -5 -5 -4 ------------ Run | Yrd Mat Min Exi Min Mat Sto Fac Fac Ext Cet Arc Fac DSF Fac Used RIF Installer . | . . . . . . . . . . . . . . . Robots Hacked . | . . . . . . . . . . . . . . . Non-combat . | . . . . . . . . . . . . . . . Combat . | . . . . . . . . . . . . . . . Robot Hacks Applied . | . . . . . . . . . . . . . . . Relay Couplers Released 3 | . . . . . . . . . . . . 3 . . Ejected 3 | . . . . . . . . . . . . 3 . . Fabnet Peak Effective % . | . . . . . . . . . . . . . . . Robots Rewired 6 | . . . . . . . . . 6 . . . . . Allies Hacked . | . . . . . . . . . . . . . . . Hacks Repelled . | . . . . . . . . . . . . . . . Allies | -11 -10 -10 -10 -9 -8 -8 -7 -6 -6 -6 -6 -5 -5 -4 -------- Run | Yrd Mat Min Exi Min Mat Sto Fac Fac Ext Cet Arc Fac DSF Fac Total Allies 21 | . . . . 1 . 10 1 . 8 . . . . 1 Largest Group 10 | . . . . 1 1 10 1 . 5 1 . . . 1 Highest-Rated Group 293 | . . . . 31 31 173 8 . 293 39 . . . 13 Highest-Rated Ally 159 | . . . . 31 31 31 8 . 159 39 . . . 13 Total Orders 8 | . . . . . . 2 2 . 1 2 . . . 1 STAY 1 | . . . . . . 1 . . . . . . . . ROAM 1 | . . . . . . 1 . . . . . . . . FOLLOW 1 | . . . . . . . . . 1 . . . . . PICKUP 1 | . . . . . . . 1 . . . . . . . COLLECT 2 | . . . . . . . 1 . . . . . . 1 EXPLORE 2 | . . . . . . . . . . 2 . . . . Ally Attacks 118 | . . . . 1 5 27 . . 84 1 . . . . Total Damage 2279 | . . . . 21 64 315 . . 1867 12 . . . . Kills 23 | . . . . . 1 1 . . 21 . . . . . Allies Corrupted . | . . . . . . . . . . . . . . . Allies Melted 2 | . . . . . . 1 . . 1 . . . . . Intel | -11 -10 -10 -10 -9 -8 -8 -7 -6 -6 -6 -6 -5 -5 -4 ------- Run | Yrd Mat Min Exi Min Mat Sto Fac Fac Ext Cet Arc Fac DSF Fac Robot Analysis Total 1 | . . . . . 1 . . . . . . . . . Derelict Logs Recovered 2 | . . . . 2 . . . . . . . . . . Drone Launches 3 | . . . . . . . . . . 3 . . . . Drone Recoveries 1 | . . . . . . . . . . 1 . . . . Exploration | -11 -10 -10 -10 -9 -8 -8 -7 -6 -6 -6 -6 -5 -5 -4 ------------- Run | Yrd Mat Min Exi Min Mat Sto Fac Fac Ext Cet Arc Fac DSF Fac Turns Passed 4608 | 150 156 109 344 170 217 252 622 437 962 374 83 268 134 330 Spaces Moved 2817 | 87 70 88 261 86 174 187 526 343 421 182 41 169 60 122 Core 21 | 17 . . . . . . . . . . . . . 4 Treads 352 | . . . . . . . . . . . 15 169 60 108 Legs 965 | 70 70 88 261 86 12 . . . 160 182 26 . . 10 Wheels . | . . . . . . . . . . . . . . . Hover 1479 | . . . . . 162 187 526 343 261 . . . . . Flight . | . . . . . . . . . . . . . . . Fastest Speed 40 | 50 120 120 120 190 102 102 40 100 100 120 120 145 157 50 Average Speed 131 | 113 120 120 129 190 108 102 98 100 178 164 132 153 157 169 Slowest Speed 1050 | 250 120 120 190 190 190 106 105 100 330 260 260 157 157 1050 Overloaded Moves . | . . . . . . . . . . . . . . . Propulsion Burnouts . | . . . . . . . . . . . . . . . Robots Hopped . | . . . . . . . . . . . . . . . Cave-ins Triggered . | . . . . . . . . . . . . . . . Exploration Rate (%) 33 | 4 30 27 61 34 16 40 17 8 58 72 64 4 57 4 Regions Visited 14 Branch Regions 7 Pre-discovered Areas 1 | . . . . 1 . . . . . . . . . . Known Exits Taken 6 | . . . . 1 . . . 1 1 1 1 1 . . Unknown Exits Taken 7 | 1 1 1 1 . 1 1 1 . . . . . . . Scrap Searched 1 | . . 1 . . . . . . . . . . . . Spaces Dug . | . . . . . . . . . . . . . . . Terrain Destroyed 81 | . . . . . . 1 . 1 17 8 . . . 54 Melee . | . . . . . . . . . . . . . . . Projectile 33 | . . . . . . 1 . 1 17 8 . . . 6 AOE 47 | . . . . . . . . . . . . . . 47 Terrain Rammed . | . . . . . . . . . . . . . . . Walls Destroyed . | . . . . . . . . . . . . . . . Machines Disabled . | . . . . . . . . . . . . . . . Actions | -11 -10 -10 -10 -9 -8 -8 -7 -6 -6 -6 -6 -5 -5 -4 --------- Run | Yrd Mat Min Exi Min Mat Sto Fac Fac Ext Cet Arc Fac DSF Fac Total 3477 | 116 98 92 271 93 203 239 620 428 605 221 57 176 79 179 Wait 171 | . 1 . . 8 7 26 43 70 3 2 . . 1 10 Move 2803 | 86 69 87 260 85 173 186 525 342 420 181 40 168 59 122 Hop . | . . . . . . . . . . . . . . . Pick Up 86 | 12 4 2 4 . 9 10 13 3 19 2 1 3 1 3 Fast Attach 31 | . . . . . . . 14 1 . 5 . 2 4 5 Attach 54 | 6 2 1 . . 8 5 2 2 9 4 6 2 . 7 Detach 4 | . . . . . 3 . . . 1 . . . . . Swap 23 | 1 . . 1 . 2 1 2 2 5 2 1 1 5 . Drop 54 | . . 2 6 . 1 2 15 3 15 6 . . 2 2 Fire 140 | 11 22 . . . . 4 6 5 27 19 9 . 7 30 Melee . | . . . . . . . . . . . . . . . Ram 1 | . . . . . . . . . 1 . . . . . Kick . | . . . . . . . . . . . . . . . Crush . | . . . . . . . . . . . . . . . Escape Stasis 58 | . . . . . . . . . 58 . . . . . Rewire 52 | . . . . . . 5 . . 47 . . . . . Trap . | . . . . . . . . . . . . . . . Miscellaneous . | . . . . . . . . . . . . . . . Route ------- -11/Scrapyard -10/Materials -10/Mines (discovered 2 exits: [*Mat] / *Exi) -10/Exiles -9/Mines -8/Materials (discovered 2 exits: *Sto / Gar) -8/Storage -7/Factory -6/Factory -6/Extension (discovered 2 exits: *Fac / *Cet) -6/Cetus (discovered 2 exits: *Fac / *Arc) -6/Archives -5/Factory -5/DSF -4/Factory History --------- Turn | Location | Event 12 | -11/Scrapyard | Discovered new exit (range 16) 151 | -11/Scrapyard | Entered Materials 223 | -10/Materials | Discovered new exit (range 14) 276 | -10/Materials | Met 8R-AWN 307 | -10/Materials | Entered Mines 309 | -10/Mines | Followed 8R-AWN into the Mines 315 | -10/Mines | Build established: Mutant 331 | -10/Mines | Discovered new exit (range 10) 364 | -10/Mines | A weapon hastily lodged in a ceiling crevice suddenly fell to the ground 406 | -10/Mines | Discovered new exit (range 5) 416 | -10/Mines | Entered Exiles 445 | -10/Exiles | Welcomed by 8R-AWN 466 | -10/Exiles | Met EX-HEX 503 | -10/Exiles | Met EX-BIN 520 | -10/Exiles | Aligned with FarCom system 521 | -10/Exiles | Given EX-Vault access code 552 | -10/Exiles | Opened EX-Vault 562 | -10/Exiles | Found AWS/Autocannon 591 | -10/Exiles | Warned to stay clear of 0b10 Research branches 623 | -10/Exiles | Met EX-DEC 735 | -10/Exiles | Discovered new exit (range 10) 760 | -10/Exiles | Left Exiles lab with AWS/Autocannon 760 | -10/Exiles | Entered Mines 773 | -9/Mines | Met a Derelict bent on vengeance 836 | -9/Mines | Assembled infested the area 863 | -9/Mines | Learned location of Zion (-6) 865 | -9/Mines | Identified exit to Materials 925 | -9/Mines | Received a Mining Laser from a helpful Derelict 930 | -9/Mines | Entered Materials 930 | -8/Materials | Accompanied by 1 ally 930 | -8/Materials | Evolved 4 slots: Propulsion x1, Utility x1, Weapon x2 1072 | -8/Materials | Identified exit to Garrison 1084 | -8/Materials | Discovered new exit (range 8) 1147 | -8/Materials | Entered Storage 1147 | -8/Storage | Accompanied by 1 ally 1253 | -8/Storage | Build established: Skirmisher 1278 | -8/Storage | Assisted by bots powering up and referring to "LRC-V3" 1363 | -8/Storage | Discovered new exit (range 13) 1399 | -8/Storage | Entered Factory 1399 | -7/Factory | Evolved 2 slots: Power x1, Propulsion x1 1409 | -7/Factory | Lost 6 allies 1752 | -7/Factory | Fabricated R-06 Scavenger (x1) 2014 | -7/Factory | Discovered new exit (range 8) 2021 | -7/Factory | Entered another Factory area 2021 | -6/Factory | Evolved 2 slots: Utility x2 2402 | -6/Factory | Fabricated Adv. Heavy Treads (x1) 2430 | -6/Factory | Discovered new exit (range 5) 2454 | -6/Factory | Identified exit to Extension 2458 | -6/Factory | Entered Extension 2595 | -6/Extension | Rescued a captive Derelict 2669 | -6/Extension | Lost 3 parts (1p1n1w) 2885 | -6/Extension | Rescued A7 3126 | -6/Extension | Hacking Suite fried by hacking feedback 3135 | -6/Extension | Spotted B-75 Beast 3146 | -6/Extension | Spotted B-75 Beast 3156 | -6/Extension | Allies destroyed B-75 Beast 3168 | -6/Extension | Allies destroyed B-75 Beast 3171 | -6/Extension | Lost 3 allies 3230 | -6/Extension | Destroyed A7 3243 | -6/Extension | Extracted ID and sensor layout for unrecognized location from A7's data core 3295 | -6/Extension | Destroyed 8 combat bots 3382 | -6/Extension | Discovered new exit (range 16) 3382 | -6/Extension | Discovered new exit (range 16) 3409 | -6/Extension | Identified exit to Cetus 3412 | -6/Extension | Identified exit to Factory 3420 | -6/Extension | Entered Cetus 3420 | -6/Cetus | Accompanied by 1 ally 3424 | -6/Cetus | Build established: Scavenger-Tank 3445 | -6/Cetus | Spotted Cetus Guard 3460 | -6/Cetus | Spotted Cetus Guard 3460 | -6/Cetus | Destroyed Cetus Guard 3466 | -6/Cetus | Destroyed Cetus Guard 3472 | -6/Cetus | Destroyed Cetus Guard 3474 | -6/Cetus | Destroyed Cetus Guard 3486 | -6/Cetus | Discovered exit to Factory (range 38) 3732 | -6/Cetus | Discovered new exit (range 16) 3753 | -6/Cetus | Spotted Cetus Guard 3753 | -6/Cetus | Spotted Cetus Guard 3756 | -6/Cetus | Spotted Cetus Guard 3757 | -6/Cetus | Spotted Cetus Guard 3780 | -6/Cetus | Build established: Scavenger-Skirmisher 3793 | -6/Cetus | Identified exit to Archives 3794 | -6/Cetus | Entered Archives 3860 | -6/Archives | Discovered exit to Factory (range 13) 3877 | -6/Archives | Entered Factory 3877 | -5/Factory | Evolved 2 slots: Utility x1, Weapon x1 3899 | -5/Factory | Lost 14 parts (2p7n1u4w) 4144 | -5/Factory | Identified exit to DSF 4145 | -5/Factory | Entered DSF 4182 | -5/DSF | Additional patrols routed to DSF 4251 | -5/DSF | Discovered new exit (range 16) 4277 | -5/DSF | Identified exit to Factory 4279 | -5/DSF | Entered Factory 4279 | -4/Factory | Evolved 2 slots: Power x1, Propulsion x1 4364 | -4/Factory | Fabricated A-02 Transporter (x1) 4454 | -4/Factory | Build established: Hacker-Skirmisher 4547 | -4/Factory | Core integrity fell below 50% 4603 | -4/Factory | Core integrity fell below 20% 4608 | -4/Factory | Released all parts (4) 4609 | -4/Factory | Destroyed by G-67 Veteran with Field Laser Last Messages --------------- 04593_ Slug penetrates G-67 Veteran. 04593_ U-05 Engineer lays Concrete. 04594_ Railgun destroyed. 04595_ U-05 Engineer builds a Wall. 04595_ K-01 Serf collects debris. 04599_ U-05 Engineer builds a Wall. 04599_ Acquired Imp. Hover Unit. 04601_ Acquired 47 matter. 04601_ KE Penetrator destroyed. 04602_ Critical hit (Burn: +50). 04603_ K-01 Serf collects debris. 04603_ U-05 Engineer lays Concrete. 04603_ Imp. Hover Unit destroyed. 04603_ Myomer Leg destroyed. 04605_ U-05 Engineer builds a Wall. 04606_ K-01 Serf collects debris. 04608_ Released Lrg. Storage Unit. 04608_ Released Hacking Suite. 04608_ Released Imp. System Shield. 04609_ U-05 Engineer lays Concrete. Map ----- +----------------------------------------------------+ | ???????????????????????????????????????????? | | ???????????????????????????????????????????? | | ???????????????????????????????????????????? | | ???????????????????????????????????????????? | | ???????????????????????????????????????????? | | ???????????????????????????????????????????? | | ???????????????????????????????????????????? | | ???????????????????????????????????????????? | | ???????????????????????????????????????????? | | ???????????????????????????????????????????? | | ???????????????????????????????????????????? | | ???????????????????????????????????????????? | | ???????????????????????????????????????????? | | ???????????????????????????????????????????? | | ???????????????????????????????????????????? | | ???????????????????????????????????????????? | | ???????????????????????????w???????????????? | | ???????########?#####??????????????????????? | | ?????? * ?# ??????????????????????? | | ?????? # ??????????????????????? | | ??????! # ??????????????????????? | | ????? # #??????????????????????? | | ?????" # #??????????????????????? | | ?????" g g ; +??????????????????????? | | ???? g k #??????????????????????? | | ???? @#??????????????????????? | | ???? !!#??????????????????????? | | ???? !!#??????????????????????? | | ???? =!#??????????????????????? | | ???" # !!##?????????????????????? | | ???#" ##u% #####??????????????????? | | ???# %! # #??????????????????? | | ????# ###??????????????????? | | ?????##### #[!*Tg #################????? | | ?????????####?#g % " #????? | | ??????????????# ! #### #????? | | ??????????????# #??# """ """ #????? | | ??????????????# [! #??# """ """ #????? | | ???????????#######+####### """ """ #????? | | ???????????# =[!! # #????? | | ???????????# ! !*%!! # """ ! #????? | | ???????????# " *! ! ! # """ #????? | | ???????????# "" " # """ #????? | | ???????????# """" "" " # ""T"" #????? | | ???????????# """" """" # """"" #????? | | ???????????# """" """" # #????? | | ???????????# """" """" #######+########### | | ???????????# ##### ^ ^ | | ???????????# """"T"""" + | | ???????????# """"""""""" ##### """^ | +----------------------------------------------------+ Best States ------------- Heat Dissipation 43 Energy Generation 41 Energy Capacity 570 Matter Stores 300 Matter Capacity 300 Sight Range 16 Robot Scan Range 15 Terrain Scan Density 10 Armor Coverage 225 Weapon Shielding 33 Evasion (%) 57 Targeting Accuracy 5 Recoil Reduction 3 Offensive Hacking 20 Defensive Hacking 12 Item Schematics ----------------- None Robot Schematics ------------------ None Fabricated ------------ R-06 Scavenger | x1 | -7/Factory | Preloaded Adv. Heavy Treads | x1 | -6/Factory | Preloaded A-02 Transporter | x1 | -4/Factory | Preloaded Alien Tech Used ----------------- None Achievements -------------- Collateral Damage Prison Break Challenges ------------ None Game ------ Seed EnergyAutogunMembrane Manual? 0 Play Time 00:50:35 Cumulative 33.9 hours Start 2024.04.09 @ 22:54:04 End 2024.04.09 @ 23:49:51 Sessions 4 Manual Loads 0 Difficulty Rogue Special Mode None Game No. 91 Rogue 89 Adventurer 2 Explorer 0 Win Type - Total 0 Types 0/0/0/0/0/0/0/0/0 Lore% 29 Gallery% 42 Achievement% 33 Wizard Run 0 Options --------- Layout 2 ASCII 0 Keyboard 0 Movement Arrows Keybinds 0 Fullscreen 2 Font 24/Smallcaps Map View 50x44 Zoom Use 0% Tactical HUD 1 Map Filters NONE Filters NONE Steam 1 RUN: c85c0fa7-6533-4763-a994-95a42aa1c468